bitfinex/quotes_BTCUSD_20220303
["timestamp","ask_amount","ask_price","bid_price","bid_amount"]
[1646294204829,0.355208,43404.0,43402.0,0.17191144]
[1646294205031,0.1,43405.0,43402.0,0.17191144]
[1646294205430,0.1,43405.0,43402.0,0.38604196]
[1646294206231,0.355208,43404.0,43402.0,0.17191144]
[1646294206733,0.1,43403.0,43402.0,0.17191144]
[1646294207431,0.1,43403.0,43402.0,0.40500778]
[1646294207896,0.355208,43406.0,43402.0,0.40500778]
[1646294208296,0.1,43405.0,43402.0,0.40500778]
[1646294209297,0.025,43407.0,43402.0,0.40500778]
[1646294210099,0.355208,43406.0,43402.0,0.40500778]
[1646294210299,0.1,43405.0,43402.0,0.40500778]
[1646294211000,0.1,43405.0,43402.0,0.4051639]
[1646294211403,0.355208,43406.0,43402.0,0.4051639]
[1646294211837,0.355208,43404.0,43402.0,0.40500778]
[1646294212035,0.025,43407.0,43403.0,0.3180371]
[1646294212236,0.004,43406.0,43403.0,0.141533]
[1646294212440,0.004,43406.0,43402.0,0.40516376]
[1646294212441,0.004,43406.0,43404.0,0.0459]
[1646294212636,0.004,43406.0,43405.0,0.141517]
[1646294212836,0.004,43406.0,43404.0,0.0459]
[1646294213137,0.004,43406.0,43403.0,0.00015598]
[1646294213537,0.025,43407.0,43403.0,0.00015598]
[1646294214237,0.028,43407.0,43402.0,0.40500778]
[1646294214539,0.028,43407.0,43403.0,0.00015616]
[1646294215385,0.028,43407.0,43403.0,0.164523]
[1646294215386,0.26257051,43407.0,43403.0,0.164523]
[1646294215588,0.025,43407.0,43403.0,0.16467917]
[1646294215986,0.025,43407.0,43403.0,0.14168917]
[1646294216186,0.028,43407.0,43403.0,0.14168917]
[1646294216586,0.028,43407.0,43403.0,0.141533]
[1646294216788,0.028,43407.0,43403.0,0.14168917]
[1646294217386,0.26557051,43407.0,43403.0,0.14168917]
[1646294217589,0.26257051,43407.0,43403.0,0.14168917]
[1646294217790,0.26257051,43407.0,43403.0,0.141533]
[1646294217987,0.26257051,43407.0,43403.0,0.14168927]
[1646294218188,0.26257051,43407.0,43403.0,0.00215627]
[1646294218394,0.23757051,43406.0,43403.0,0.00215627]
[1646294218590,0.23757051,43404.0,43403.0,0.00215627]
[1646294218789,0.1,43404.0,43403.0,0.00215627]
[1646294219021,0.1,43404.0,43403.0,0.002]
[1646294219419,0.1,43404.0,43401.0,0.00015627]
[1646294219622,0.23759303,43402.0,43401.0,0.00015627]
[1646294220222,0.23759303,43402.0,43400.0,0.05075897]
[1646294220620,0.23759303,43402.0,43401.0,0.355208]
[1646294222026,0.23759303,43402.0,43401.0,0.350208]
[1646294222227,0.38447442,43405.0,43401.0,0.350208]
[1646294222228,0.23759303,43403.0,43401.0,0.350208]
[1646294222430,0.23759303,43402.0,43400.0,0.05075897]
[1646294222626,0.23759303,43402.0,43401.0,0.355372]
[1646294223078,0.23759303,43402.0,43400.0,0.05091522]
[1646294223577,0.23759303,43402.0,43401.0,0.355372]
[1646294223779,0.23759303,43402.0,43400.0,0.05075897]
[1646294224378,0.23759303,43402.0,43401.0,0.355372]
[1646294224580,0.23759303,43402.0,43400.0,0.05075897]
[1646294224878,0.23759303,43401.0,43400.0,0.05075897]
[1646294225083,0.23759303,43402.0,43400.0,0.18714197]
[1646294225280,0.28447442,43404.0,43400.0,0.18714197]
[1646294225281,0.23759303,43401.0,43400.0,0.18714197]
[1646294226532,0.23759303,43401.0,43400.0,0.18702197]
[1646294227736,0.24359303,43402.0,43400.0,0.18702197]
[1646294228535,0.23759303,43402.0,43400.0,0.18702197]
[1646294228736,0.002,43401.0,43400.0,0.24465188]
[1646294228938,0.23759303,43404.0,43402.0,0.002833]
[1646294229139,0.23759303,43405.0,43403.0,0.51500005]
[1646294229538,0.23759303,43406.0,43403.0,0.51500005]
[1646294230580,0.5024696,43408.0,43403.0,0.56090005]
[1646294230984,0.5024696,43408.0,43405.0,0.136363]
[1646294230985,0.21799518,43408.0,43405.0,0.136363]
[1646294231184,0.21799518,43408.0,43407.0,0.35532]
[1646294231386,0.21799518,43408.0,43407.0,0.40122]
[1646294232886,0.20899518,43408.0,43407.0,0.40122]
[1646294233083,0.20893518,43408.0,43407.0,0.40122]
[1646294233283,0.20887518,43408.0,43407.0,0.40122]
[1646294233686,0.20887518,43408.0,43407.0,0.35718534]
[1646294235429,0.20887518,43408.0,43407.0,0.35918534]
[1646294236027,0.20887518,43408.0,43407.0,0.67497716]
[1646294236726,0.20887518,43408.0,43407.0,0.67297716]
[1646294237126,0.20387518,43408.0,43407.0,0.67297716]
[1646294237529,0.20387518,43408.0,43407.0,0.67497716]
[1646294238188,0.20387518,43408.0,43407.0,0.67482371]
[1646294238390,0.20387518,43408.0,43407.0,0.69781371]
[1646294238591,0.20387518,43408.0,43407.0,0.38202189]
[1646294238791,0.20387518,43408.0,43407.0,0.38002189]
[1646294238989,0.20387518,43408.0,43407.0,0.35703189]
[1646294239590,0.20487518,43408.0,43407.0,0.35703189]
[1646294240691,0.20387518,43408.0,43407.0,0.35703189]
[1646294241541,0.21387518,43408.0,43407.0,0.35703189]
[1646294242043,0.21387518,43408.0,43407.0,0.50703189]
[1646294242245,0.21387518,43408.0,43407.0,1.08113189]
[1646294242441,0.21387518,43408.0,43407.0,1.10412189]
[1646294242645,0.05,43416.0,43409.0,0.159337]
[1646294242844,0.48601825,43420.0,43412.0,0.311094]
[1646294242845,0.43794459,43420.0,43412.0,0.311094]
[1646294243046,0.28447442,43420.0,43418.0,0.136314]
[1646294243245,0.29705803,43420.0,43419.0,0.0459]
[1646294243444,0.32636817,43422.0,43419.0,0.356938]
[1646294243445,0.35628355,43421.0,43419.0,0.356938]
[1646294243645,0.34208442,43421.0,43419.0,0.356938]
[1646294244144,0.06979806,43421.0,43419.0,0.63622426]
[1646294245146,0.05761,43421.0,43419.0,0.63622426]
[1646294245582,0.05861,43421.0,43419.0,0.63622426]
[1646294246778,0.05761,43421.0,43419.0,0.63622426]
[1646294247584,0.05861,43421.0,43419.0,0.63622426]
[1646294248188,0.05861,43421.0,43419.0,0.356938]
[1646294248585,0.34308442,43421.0,43419.0,0.0459]
[1646294248785,0.28447442,43420.0,43412.0,0.0459]
[1646294249033,0.01407996,43419.0,43413.0,0.355348]
[1646294249237,0.0143881,43418.0,43413.0,0.56400497]
[1646294250935,0.0143881,43418.0,43413.0,0.5501689]
[1646294251139,0.05762,43415.0,43413.0,0.5501689]
[1646294251735,0.05762,43415.0,43413.0,0.60778551]
[1646294253576,0.05762,43415.0,43413.0,0.65368551]
[1646294254680,0.05762,43415.0,43413.0,0.5960689]
[1646294256654,0.05762,43415.0,43413.0,0.65368452]
[1646294256855,0.057612,43419.0,43413.0,0.65368452]
[1646294257457,0.057612,43419.0,43415.0,0.17481613]
[1646294257656,0.057612,43419.0,43416.0,0.05973829]
[1646294258059,0.052612,43419.0,43416.0,0.05973829]
[1646294259463,0.052612,43419.0,43416.0,0.06173829]
[1646294259861,0.06606992,43419.0,43416.0,0.06173829]
[1646294260062,0.01451987,43418.0,43416.0,0.06173829]
[1646294260292,0.047612,43419.0,43416.0,0.06173829]
[1646294260894,0.047612,43419.0,43416.0,0.05973829]
[1646294261301,0.01347387,43418.0,43416.0,0.05973829]
[1646294261495,0.047612,43419.0,43416.0,0.05973829]
[1646294263496,0.047612,43419.0,43416.0,0.06173829]
[1646294264135,0.047612,43419.0,43416.0,0.11934731]
[1646294264738,0.047612,43419.0,43416.0,0.11734731]
[1646294265536,0.047612,43419.0,43416.0,0.12034731]
[1646294267038,0.047612,43419.0,43416.0,0.11734731]
[1646294267639,0.047612,43419.0,43416.0,0.11934731]
[1646294267888,0.047612,43419.0,43416.0,0.06173829]
[1646294268488,0.28516885,43419.0,43416.0,0.06173829]
[1646294268889,0.28516885,43419.0,43416.0,0.05973829]
[1646294269490,0.28516885,43419.0,43416.0,0.06173829]
[1646294269894,0.28516885,43419.0,43416.0,0.11934685]
[1646294270093,0.047612,43419.0,43416.0,0.11934685]
[1646294270993,0.28516885,43419.0,43416.0,0.11734685]
[1646294271637,0.23755685,43419.0,43416.0,0.16524685]
[1646294272034,0.15348545,43422.0,43416.0,0.16524685]
[1646294272035,0.23755685,43420.0,43416.0,0.16524685]
[1646294272235,0.23755685,43420.0,43418.0,0.341472]
[1646294272434,0.23755685,43420.0,43419.0,0.0459]
[1646294272635,0.27947442,43423.0,43419.0,0.22083307]
[1646294272835,0.15348545,43425.0,43419.0,2.65919708]
[1646294273035,0.00015513,43426.0,43419.0,2.65919708]
[1646294273236,0.05775713,43426.0,43425.0,0.1930257]
[1646294273435,0.057602,43426.0,43425.0,0.5344397]
[1646294273636,0.057602,43426.0,43425.0,0.80332763]
[1646294274039,0.39015008,43426.0,43425.0,1.11689111]
[1646294274243,0.05,43436.0,43425.0,1.11689111]
[1646294274244,0.33254808,43427.0,43425.0,1.16279111]
[1646294274439,0.33254808,43431.0,43426.0,0.37327948]
[1646294274638,0.00015602,43428.0,43427.0,0.0459]
[1646294274838,0.00015602,43428.0,43427.0,0.387297]
[1646294275509,0.33254808,43431.0,43427.0,0.392297]
[1646294275709,0.00015602,43430.0,43427.0,0.387297]
[1646294275911,0.00015602,43430.0,43429.0,0.064709]
[1646294276110,0.00015602,43430.0,43429.0,0.110609]
[1646294276711,0.33254808,43431.0,43429.0,0.110609]
[1646294277015,0.33254808,43431.0,43429.0,0.105609]
[1646294278111,0.39015008,43431.0,43429.0,0.105609]
[1646294279456,0.38161304,43430.0,43429.0,0.01566036]
[1646294279659,0.38161304,43430.0,43424.0,0.001]
[1646294279856,0.33269968,43426.0,43424.0,0.001]
[1646294280055,0.33269968,43425.0,43424.0,0.001]
[1646294280255,0.39031468,43426.0,43424.0,0.356333]
[1646294280455,0.4505367,43426.0,43425.0,0.355333]
[1646294280655,0.39031468,43426.0,43425.0,0.355333]
[1646294280855,0.39031468,43426.0,43421.0,0.02298]
[1646294281054,0.39031468,43426.0,43422.0,0.355333]
[1646294281055,0.28519139,43423.0,43422.0,0.355333]
[1646294282355,0.28519139,43423.0,43422.0,0.60000165]
[1646294282789,0.28519139,43424.0,43422.0,0.64590165]
[1646294285392,0.28519139,43424.0,43422.0,0.60000165]
[1646294286394,0.28519139,43424.0,43422.0,0.355333]
[1646294287458,0.28519139,43424.0,43422.0,0.59838942]
[1646294287655,0.28519139,43423.0,43422.0,0.59838942]
[1646294288857,0.28519139,43423.0,43422.0,0.355333]
[1646294290062,0.28519139,43424.0,43423.0,0.21189111]
[1646294290294,0.28519139,43424.0,43423.0,0.25771911]
[1646294290693,0.28519139,43424.0,43423.0,0.21007706]
[1646294293594,0.28519139,43424.0,43423.0,0.21207706]
[1646294293795,0.28519139,43425.0,43423.0,0.21207706]
[1646294294044,0.33287533,43426.0,43424.0,0.355316]
[1646294294243,0.33287533,43426.0,43424.0,0.355333]
[1646294294442,0.33269968,43425.0,43424.0,0.355333]
[1646294294643,0.35568968,43426.0,43423.0,0.002]
[1646294294846,0.35568968,43426.0,43424.0,0.355333]
[1646294295043,0.33269968,43425.0,43422.0,0.355333]
[1646294295248,0.28526883,43423.0,43422.0,0.355333]
[1646294296345,0.28526883,43423.0,43422.0,0.56053283]
[1646294296944,0.28526883,43423.0,43422.0,0.355333]
[1646294297983,0.39031068,43425.0,43422.0,0.355333]
[1646294298185,0.33269968,43425.0,43424.0,0.15829851]
[1646294298384,0.33286856,43426.0,43425.0,0.355307]
[1646294298587,0.00016888,43426.0,43425.0,0.355307]
[1646294298785,0.00016888,43426.0,43425.0,0.401207]
[1646294299383,0.33269968,43427.0,43425.0,0.401207]
[1646294299584,0.33269968,43427.0,43425.0,0.46080323]
[1646294299784,0.33269968,43427.0,43426.0,0.29063126]
[1646294299984,0.33269968,43427.0,43426.0,0.33653126]
[1646294300184,0.32769968,43427.0,43426.0,0.33653126]
[1646294301730,0.00016987,43429.0,43426.0,0.33653126]
[1646294301731,0.00016987,43429.0,43426.0,0.33853126]
[1646294301932,0.28535153,43428.0,43427.0,0.355289]
[1646294302132,0.28535153,43428.0,43427.0,0.401189]
[1646294303132,0.28535153,43428.0,43427.0,0.65995423]
[1646294303732,0.28535153,43428.0,43427.0,0.66295423]
[1646294304032,0.28535153,43428.0,43427.0,0.97417307]
[1646294304633,0.28535153,43428.0,43427.0,0.97917307]
[1646294305033,0.28535153,43428.0,43427.0,0.97617307]
[1646294305584,0.28535153,43428.0,43427.0,0.97917307]
[1646294306885,0.28535153,43428.0,43427.0,0.97617307]
[1646294307684,0.28535153,43428.0,43427.0,0.97917307]
[1646294308483,0.28535153,43429.0,43427.0,0.97917307]
[1646294308682,0.28552127,43430.0,43429.0,0.045818]
[1646294308884,0.28552127,43430.0,43429.0,0.40793684]
[1646294309148,0.28535153,43430.0,43429.0,0.40793684]
[1646294309342,0.28552127,43432.0,43429.0,0.40793684]
[1646294309551,0.28552127,43432.0,43431.0,1.36827284]
[1646294309552,0.00016974,43432.0,43431.0,1.36827284]
[1646294309739,0.00016974,43432.0,43431.0,1.99327284]
[1646294310243,0.28535153,43436.0,43431.0,2.29589333]
[1646294310441,0.0543368,43440.0,43435.0,0.7068]
[1646294310442,0.28535153,43437.0,43435.0,0.7068]
[1646294310646,0.28535153,43437.0,43436.0,0.40792284]
[1646294310841,0.33284395,43440.0,43439.0,0.18300332]
[1646294311040,0.33284395,43441.0,43440.0,0.045795]
[1646294311240,0.33284395,43441.0,43440.0,0.40291384]
[1646294311443,0.33284395,43441.0,43440.0,0.61776562]
[1646294311639,0.17848545,43448.0,43440.0,0.61776562]
[1646294311640,0.33301367,43443.0,43440.0,0.61776562]
[1646294312042,0.33301367,43443.0,43442.0,0.360159]
[1646294312242,0.33301367,43443.0,43442.0,0.35021479]
[1646294312444,0.03703188,43443.0,43442.0,0.35021479]
[1646294312641,0.03686216,43443.0,43442.0,0.35021479]
[1646294313884,0.03686216,43443.0,43442.0,0.0459]
[1646294314882,0.33282741,43443.0,43442.0,0.396012]
[1646294315084,0.33282741,43443.0,43442.0,0.0459]
[1646294315282,0.33282741,43443.0,43442.0,0.396012]
[1646294315482,0.33282741,43443.0,43442.0,0.0459]
[1646294315686,0.33282741,43443.0,43442.0,0.0469]
[1646294315888,0.08074472,43445.0,43442.0,0.0469]
[1646294316287,0.057585,43445.0,43442.0,0.0469]
[1646294316550,0.057585,43445.0,43442.0,0.001]
[1646294316953,0.057585,43445.0,43438.0,0.26528056]
[1646294317152,0.057585,43445.0,43439.0,0.350137]
[1646294317356,0.02299,43444.0,43439.0,0.350137]
[1646294317553,0.057585,43445.0,43439.0,0.350137]
[1646294317755,0.00016972,43444.0,43439.0,0.350137]
[1646294318756,0.057585,43445.0,43434.0,0.1218]
[1646294318757,0.080575,43445.0,43434.0,0.1218]
[1646294318962,0.01270196,43444.0,43434.0,0.001]
[1646294319155,0.02299,43441.0,43424.0,0.3001]
[1646294319359,0.0576,43439.0,43424.0,0.3001]
[1646294319555,0.0576,43439.0,43430.0,0.350214]
[1646294320155,0.05504741,43437.0,43430.0,0.6603878]
[1646294320393,0.00016973,43437.0,43430.0,0.350214]
[1646294320695,0.00016973,43437.0,43430.0,0.6603878]
[1646294320892,0.00016973,43437.0,43431.0,0.3101738]
[1646294321097,0.125,43441.0,43435.0,0.28953759]
[1646294321291,0.19596374,43441.0,43436.0,0.350168]
[1646294321494,0.09596374,43441.0,43436.0,0.350168]
[1646294322593,0.11912346,43441.0,43433.0,0.28915606]
[1646294322792,0.11912346,43441.0,43434.0,0.350184]
[1646294323192,0.09613346,43441.0,43434.0,0.350184]
[1646294323394,0.04815972,43441.0,43434.0,0.40777359]
[1646294323596,0.04799,43441.0,43434.0,0.40777359]
[1646294323795,0.00016972,43440.0,43434.0,0.40977359]
[1646294324651,0.057589,43443.0,43434.0,0.40977359]
[1646294324652,0.09678809,43442.0,43434.0,0.40977359]
[1646294324852,0.00016973,43439.0,43434.0,0.40977359]
[1646294325053,0.00016973,43439.0,43434.0,0.40777359]
[1646294325653,0.00016973,43439.0,43436.0,0.01]
[1646294325855,0.080579,43443.0,43436.0,0.01]
[1646294326054,0.00016973,43439.0,43436.0,0.01]
[1646294326258,0.00016973,43439.0,43437.0,0.350157]
[1646294326654,0.00016973,43439.0,43437.0,0.350159]
[1646294326853,0.05776273,43439.0,43437.0,0.350159]
[1646294327054,0.05776273,43439.0,43436.0,0.01]
[1646294327055,0.057593,43439.0,43436.0,0.01]
[1646294327654,0.00016972,43440.0,43437.0,0.350161]
[1646294328289,0.02299,43443.0,43436.0,0.01]
[1646294328489,0.00016972,43441.0,43438.0,0.27651105]
[1646294328689,0.00016972,43441.0,43437.0,0.350157]
[1646294329489,0.18449,43445.0,43437.0,0.350157]
[1646294329691,0.00016972,43441.0,43437.0,0.3111738]
[1646294329891,0.00016972,43441.0,43438.0,0.350147]
[1646294330592,0.00016972,43441.0,43440.0,0.350132]
[1646294330790,0.025,43446.0,43440.0,0.396032]
[1646294330992,0.00016972,43442.0,43440.0,0.0459]
[1646294331291,0.00016972,43442.0,43441.0,0.35012]
[1646294331941,0.025,43446.0,43441.0,0.35012]
[1646294332141,0.00016972,43444.0,43440.0,0.0469]
[1646294333144,0.025,43446.0,43440.0,0.04578594]
[1646294333343,0.00016972,43444.0,43441.0,0.350121]
[1646294333544,0.00016972,43444.0,43441.0,0.05757786]
[1646294333945,0.00016972,43444.0,43443.0,0.17376053]
[1646294334343,0.025,43446.0,43443.0,0.17376053]
[1646294334544,0.02516972,43446.0,43443.0,0.17376053]
[1646294335319,0.02516972,43446.0,43444.0,0.21554119]
[1646294335514,0.02516972,43446.0,43441.0,0.05757786]
[1646294335515,0.025,43446.0,43441.0,0.05757786]
[1646294336511,0.025,43446.0,43442.0,0.59975411]
[1646294336910,0.025,43446.0,43442.0,0.24964411]
[1646294336911,0.02516972,43446.0,43442.0,0.24964411]
[1646294337111,0.02516972,43446.0,43442.0,0.35011]
[1646294337511,0.02516972,43446.0,43441.0,0.2648351]
[1646294337712,0.02516972,43446.0,43444.0,0.01]
[1646294337911,0.025,43446.0,43444.0,0.01]
[1646294338110,0.02516972,43446.0,43444.0,0.01]
[1646294339070,0.025,43446.0,43444.0,0.01]
[1646294340574,0.082586,43446.0,43444.0,0.01]
[1646294341272,0.025,43446.0,43445.0,0.350084]
[1646294341473,0.11879983,43448.0,43445.0,0.350084]
[1646294341672,0.4053276,43450.0,43444.0,0.01]
[1646294341874,0.4053276,43450.0,43445.0,0.350081]
[1646294341875,0.00010267,43447.0,43445.0,0.350081]
[1646294342673,0.3803276,43449.0,43445.0,0.350081]
[1646294342888,0.025,43450.0,43445.0,0.350081]
[1646294342889,0.00018305,43448.0,43445.0,0.350081]
[1646294343288,0.00018305,43448.0,43445.0,0.352081]
[1646294343490,0.00018305,43448.0,43445.0,0.46721761]
[1646294343889,0.4053276,43450.0,43445.0,0.46721761]
[1646294344090,0.00018305,43449.0,43445.0,0.46721761]
[1646294344289,0.00018305,43449.0,43445.0,0.46521761]
[1646294344895,0.38051065,43449.0,43444.0,0.12513661]
[1646294345094,0.06890207,43446.0,43445.0,0.002]
[1646294345294,0.78239347,43446.0,43445.0,0.002]
[1646294345494,0.40206587,43446.0,43445.0,0.00173229]
[1646294345693,0.50206587,43446.0,43445.0,0.00173229]
[1646294346393,0.50206587,43446.0,43444.0,0.01]
[1646294346642,0.4331638,43445.0,43444.0,0.01]
[1646294347144,0.12299,43445.0,43444.0,0.01]
[1646294347746,0.057595,43446.0,43444.0,0.01]
[1646294347947,0.1,43447.0,43444.0,0.360093]
[1646294347948,0.3808642,43447.0,43444.0,0.360093]
[1646294348146,0.3808642,43447.0,43444.0,0.01]
[1646294348647,0.3806888,43447.0,43444.0,0.01]
[1646294349146,0.3806888,43447.0,43444.0,0.011]
[1646294349750,0.3808642,43448.0,43444.0,0.011]
[1646294349947,0.3806888,43448.0,43444.0,0.011]
[1646294350148,0.3808642,43448.0,43444.0,0.011]
[1646294350611,0.3806888,43447.0,43444.0,0.01]
[1646294351211,0.3806888,43447.0,43445.0,0.350084]
[1646294351427,0.3806888,43447.0,43445.0,0.350083]
[1646294352614,0.37585787,43448.0,43446.0,0.3101738]
[1646294352813,0.37585787,43448.0,43447.0,0.350065]
[1646294353017,0.00016907,43448.0,43447.0,0.77537128]
[1646294353217,0.00016907,43448.0,43447.0,0.82127128]
[1646294353417,0.46286855,43459.0,43447.0,0.82127128]
[1646294353418,0.0115,43458.0,43447.0,0.82127128]
[1646294353614,0.20070128,43458.0,43456.0,0.27091691]
[1646294353815,0.46286855,43459.0,43456.0,0.27091691]
[1646294353816,0.035,43459.0,43456.0,0.21859632]
[1646294354651,0.01,43459.0,43456.0,0.21859632]
[1646294354851,0.11879983,43465.0,43459.0,0.34995]
[1646294355058,0.46465855,43466.0,43461.0,0.349929]
[1646294355059,0.15558983,43466.0,43461.0,0.349929]
[1646294355252,0.15558983,43466.0,43463.0,0.02299]
[1646294355451,0.15558983,43466.0,43464.0,0.67471649]
[1646294355452,0.03679,43466.0,43464.0,0.67471649]
[1646294355648,0.03679,43466.0,43465.0,0.7990417]
[1646294355951,0.03679,43466.0,43465.0,0.8449417]
[1646294356750,0.075,43480.0,43467.0,0.02299]
[1646294356751,0.0615,43480.0,43467.0,0.02299]
[1646294356949,0.05,43480.0,43468.0,0.395758]
[1646294357150,0.0115,43484.0,43470.0,0.0575332]
[1646294357350,9.578e-05,43476.0,43471.0,0.395728]
[1646294357653,9.578e-05,43476.0,43469.0,0.4230402]
[1646294357654,9.578e-05,43476.0,43473.0,0.5664191]
[1646294357904,5.78e-06,43476.0,43474.0,0.0459]
[1646294358105,0.05,43487.0,43475.0,2.9718718]
[1646294358106,0.0078,43487.0,43475.0,2.9718718]
[1646294358305,0.025,43489.0,43486.0,0.5741]
[1646294358502,0.025,43489.0,43488.0,0.5741]
[1646294358702,0.025,43489.0,43488.0,1.5176468]
[1646294358903,0.025,43489.0,43488.0,1.93105862]
[1646294359103,0.025,43489.0,43488.0,1.89223247]
[1646294359301,0.025,43489.0,43488.0,2.61702247]
[1646294359503,0.025,43489.0,43488.0,1.89223247]
[1646294359902,0.025,43489.0,43488.0,1.91522247]
[1646294360104,0.025,43489.0,43488.0,1.79223247]
[1646294360504,0.025,43489.0,43488.0,1.13458567]
[1646294361105,0.025,43489.0,43488.0,1.44444439]
[1646294361851,0.025,43489.0,43488.0,1.79411739]
[1646294362450,0.025,43489.0,43488.0,1.79111739]
[1646294363251,0.025,43489.0,43488.0,1.79711739]
[1646294364353,0.025,43489.0,43488.0,1.79111739]
[1646294364553,0.02,43489.0,43488.0,1.79111739]
[1646294364754,0.02,43489.0,43488.0,1.44144439]
[1646294364953,0.02,43489.0,43488.0,1.79111739]
[1646294365418,0.01,43489.0,43488.0,1.79111739]
[1646294365721,0.01,43489.0,43488.0,1.44144439]
[1646294366913,0.005,43489.0,43488.0,1.21701739]
[1646294367115,0.005,43489.0,43488.0,1.15785874]
[1646294367715,0.005,43489.0,43488.0,1.05668489]
[1646294368116,0.005,43489.0,43488.0,1.19668489]
[1646294368316,0.005,43489.0,43488.0,1.05668489]
[1646294368716,0.005,43489.0,43488.0,1.01078489]
[1646294369146,0.005,43489.0,43488.0,1.01478489]
[1646294369846,0.00017889,43491.0,43489.0,1.0]
[1646294370049,0.00017889,43491.0,43490.0,0.53151338]
[1646294370348,0.05,43500.0,43490.0,0.53151338]
[1646294370349,0.05,43500.0,43492.0,0.057498]
[1646294370651,0.01149,43507.0,43497.0,0.05749781]
[1646294370847,0.01149,43507.0,43503.0,0.18065886]
[1646294371249,0.01149,43507.0,43496.0,0.11499562]
[1646294371450,0.3178558,43507.0,43497.0,0.349578]
[1646294371650,0.3178558,43507.0,43498.0,0.05750379]
[1646294371848,0.31802563,43507.0,43499.0,0.349565]
[1646294372049,0.49789617,43507.0,43500.0,0.25617117]
[1646294372248,0.01165983,43507.0,43501.0,0.1755256]
[1646294372893,0.01149,43507.0,43501.0,0.1755256]
[1646294373196,0.057506,43505.0,43501.0,0.1765256]
[1646294374295,0.057506,43505.0,43502.0,0.349539]
[1646294374296,0.05767633,43505.0,43502.0,0.349539]
[1646294374493,0.05767633,43505.0,43501.0,0.1765256]
[1646294374895,0.04547633,43505.0,43502.0,0.349539]
[1646294375094,0.045306,43505.0,43502.0,0.349539]
[1646294375395,0.040306,43505.0,43502.0,0.349539]
[1646294375595,0.040306,43505.0,43501.0,0.1755256]
[1646294375799,0.040306,43505.0,43502.0,0.349539]
[1646294375996,0.040306,43505.0,43501.0,0.1755256]
[1646294376397,0.040306,43505.0,43502.0,0.349539]
[1646294376643,0.04040864,43505.0,43502.0,0.01]
[1646294376943,0.04040864,43505.0,43503.0,0.34953]
[1646294377147,0.00010264,43505.0,43503.0,0.34953]
[1646294377346,0.00010264,43505.0,43504.0,0.6544805]
[1646294377543,0.00785419,43507.0,43505.0,0.349511]
[1646294377943,0.00018383,43506.0,43505.0,0.60652699]
[1646294378744,0.05686639,43515.0,43505.0,0.60652699]
[1646294378945,0.00018382,43508.0,43506.0,0.3049595]
[1646294379142,0.00018382,43508.0,43507.0,0.349488]
[1646294379943,0.05686639,43515.0,43507.0,0.349488]
[1646294380298,0.05686639,43515.0,43510.0,0.28827953]
[1646294381002,0.05686639,43515.0,43503.0,0.349519]
[1646294381200,0.05887182,43517.0,43507.0,0.0574902]
[1646294381399,0.05887182,43517.0,43508.0,0.349478]
[1646294381400,0.00018381,43515.0,43508.0,0.349478]
[1646294382399,0.05887182,43517.0,43509.0,0.19420472]
[1646294382601,0.0001758,43514.0,43509.0,0.19420472]
[1646294382804,0.0001758,43514.0,43510.0,0.34946]
[1646294383301,0.0001758,43514.0,43510.0,0.63547848]
[1646294383506,0.05887182,43517.0,43510.0,0.34946]
[1646294383703,0.05887182,43517.0,43509.0,0.19420472]
[1646294383704,0.0079136,43515.0,43509.0,0.19420472]
[1646294383903,0.0001758,43514.0,43510.0,0.34946]
[1646294384155,0.0001758,43514.0,43510.0,0.6544195]
[1646294384753,0.0079136,43515.0,43510.0,0.6544195]
[1646294384952,0.00016114,43514.0,43510.0,0.6544195]
[1646294385152,0.00016114,43514.0,43510.0,0.6554195]
[1646294385354,0.00016114,43514.0,43512.0,0.2049029]
[1646294385654,0.00016114,43514.0,43513.0,0.349436]
[1646294385955,0.0029136,43515.0,43513.0,0.349436]
[1646294386156,0.00285198,43515.0,43513.0,0.349436]
[1646294387354,0.00285198,43515.0,43513.0,0.350436]
[1646294388904,0.00015609,43516.0,43514.0,0.27514498]
[1646294389098,0.00015609,43516.0,43513.0,0.350436]
[1646294389099,0.00015609,43516.0,43515.0,0.349417]
[1646294389500,0.00138082,43517.0,43515.0,0.30219596]
[1646294389700,0.00138082,43517.0,43516.0,0.18400509]
[1646294389898,0.00138082,43517.0,43516.0,0.48621309]
[1646294390099,0.00138082,43517.0,43516.0,2.83067464]
[1646294390904,0.057473,43530.0,43517.0,1.3022]
[1646294391100,2.12190465,43540.0,43518.0,0.3049595]
[1646294391101,0.00015737,43519.0,43518.0,0.3049595]
[1646294391302,0.00015737,43519.0,43518.0,0.6071505]
[1646294392085,0.025,43534.0,43518.0,0.6071505]
[1646294392286,0.00015737,43521.0,43519.0,0.41710448]
[1646294392489,0.00015737,43521.0,43520.0,0.50465166]
[1646294392685,0.00015737,43521.0,43520.0,0.86428966]
[1646294393085,0.00062939,43527.0,43520.0,0.80682566]
[1646294393286,0.114944,43534.0,43521.0,0.302163]
[1646294393489,0.00015723,43523.0,43520.0,0.30390954]
[1646294393686,0.057482,43522.0,43517.0,0.1858]
[1646294393886,0.057482,43522.0,43518.0,0.302189]
[1646294394191,0.12249416,43522.0,43518.0,0.302189]
[1646294394385,0.057482,43522.0,43518.0,0.302189]
[1646294394586,0.057482,43522.0,43517.0,0.20886817]
[1646294394587,0.05763923,43522.0,43517.0,0.20886817]
[1646294394787,0.05763923,43522.0,43518.0,0.30219]
[1646294394988,0.05763923,43522.0,43517.0,0.302196]
[1646294395426,0.05763923,43522.0,43517.0,0.302197]
[1646294395628,0.057482,43522.0,43517.0,0.302197]
[1646294395826,0.05763923,43522.0,43517.0,0.302197]
[1646294396028,0.05763923,43522.0,43517.0,0.52325571]
[1646294396830,0.057482,43522.0,43517.0,0.52325571]
[1646294397027,0.05763925,43522.0,43517.0,0.302197]
[1646294397928,0.214963,43526.0,43520.0,0.23624074]
[1646294398328,0.00015725,43522.0,43521.0,0.302164]
[1646294398729,0.00015725,43522.0,43521.0,0.48696529]
[1646294398928,0.00015725,43522.0,43521.0,0.79087483]
[1646294399150,0.00062889,43528.0,43521.0,0.79087483]
[1646294399358,0.00015724,43524.0,43521.0,0.79087483]
[1646294399551,0.00015724,43524.0,43521.0,0.302164]
[1646294400348,0.057475,43526.0,43521.0,0.302164]
[1646294400548,0.057475,43526.0,43519.0,0.00109993]
[1646294400750,0.30237454,43525.0,43519.0,0.00109993]